bitfinex-derivatives/quotes_BTCF0:USTF0_20250918
["timestamp","ask_amount","ask_price","bid_price","bid_amount"]
[1758201394283,2.7601496,117470.0,117460.0,0.93]
[1758201394474,2.7602296,117470.0,117460.0,0.93]
[1758201394775,2.7601496,117470.0,117460.0,0.93]
[1758201395381,2.3374291,117470.0,117460.0,0.93]
[1758201396080,2.3373491,117470.0,117460.0,0.93]
[1758201397379,1.5627491,117470.0,117460.0,0.93]
[1758201397675,2.3373091,117470.0,117460.0,0.93]
[1758201398180,2.7600296,117470.0,117460.0,0.93]
[1758201398377,1.9854696,117470.0,117460.0,0.93]
[1758201398680,2.3372291,117470.0,117460.0,0.93]
[1758201399078,1.5627491,117470.0,117460.0,0.93]
[1758201399281,1.3127491,117470.0,117460.0,0.93]
[1758201399579,2.0871491,117470.0,117460.0,0.93]
[1758201399782,1.80561422,117470.0,117460.0,0.93]
[1758201400477,1.03121422,117470.0,117460.0,0.93]
[1758201400685,1.80553422,117470.0,117460.0,0.93]
[1758201400981,1.03121422,117470.0,117460.0,0.93]
[1758201401182,1.80553422,117470.0,117460.0,0.93]
[1758201403183,1.03121422,117470.0,117460.0,0.93]
[1758201403378,1.80549422,117470.0,117460.0,0.93]
[1758201403574,1.03121422,117470.0,117460.0,0.93]
[1758201403779,1.2415881,117470.0,117460.0,0.93]
[1758201404080,1.80549422,117470.0,117460.0,0.93]
[1758201404875,0.74926116,117470.0,117460.0,0.95191]
[1758201405083,1.52366116,117470.0,117460.0,0.93]
[1758201405288,1.80561422,117470.0,117460.0,0.93]
[1758201405687,1.52366116,117470.0,117460.0,0.95191]
[1758201405888,1.16286116,117470.0,117460.0,1.31271]
[1758201406290,1.16286116,117470.0,117460.0,1.2908]
[1758201406586,0.67041422,117470.0,117460.0,1.2908]
[1758201406790,1.44489422,117470.0,117460.0,1.2908]
[1758201407375,0.67041422,117470.0,117460.0,1.2908]
[1758201407580,0.38846116,117470.0,117460.0,1.5408]
[1758201411590,0.38646116,117470.0,117460.0,1.5408]
[1758201411787,0.38746116,117470.0,117460.0,1.5408]
[1758201412688,0.38746116,117470.0,117460.0,2.31572]
[1758201413185,0.38746116,117470.0,117460.0,1.5408]
[1758201413692,0.38746116,117470.0,117460.0,2.31564]
[1758201413890,0.38746116,117470.0,117460.0,1.5408]
[1758201414185,0.38746116,117470.0,117460.0,2.3156]
[1758201414393,0.31843306,117470.0,117460.0,2.0656]
[1758201416491,0.03648,117470.0,117460.0,2.0656]
[1758201416687,0.31843306,117470.0,117460.0,2.0656]
[1758201417794,0.03648,117470.0,117460.0,2.0656]
[1758201417996,0.31843306,117470.0,117460.0,2.0656]
[1758201418190,0.31843306,117470.0,117460.0,2.06544]
[1758201419599,0.31843306,117470.0,117460.0,2.06532]
[1758201420602,0.31843306,117470.0,117460.0,1.2908]
[1758201420801,0.3865151,117470.0,117460.0,1.2908]
[1758201421096,0.3865151,117470.0,117460.0,2.06532]
[1758201421302,0.3865151,117470.0,117460.0,1.2908]
[1758201421502,0.3865151,117470.0,117460.0,2.06532]
[1758201422902,0.3865151,117470.0,117460.0,1.2908]
[1758201423403,0.66846816,117470.0,117460.0,2.06532]
[1758201423804,0.3865151,117470.0,117460.0,2.06532]
[1758201424103,0.66846816,117470.0,117460.0,2.06532]
[1758201426503,0.66846816,117470.0,117460.0,1.2908]
[1758201426809,0.66846816,117470.0,117460.0,2.0654]
[1758201429911,0.66846816,117470.0,117460.0,1.2908]
[1758201430103,0.66846816,117470.0,117460.0,2.06528]
[1758201431108,0.66846816,117470.0,117460.0,1.70448]
[1758201431509,0.66846816,117470.0,117460.0,2.06528]
[1758201436715,0.66846816,117470.0,117460.0,2.06508]
[1758201440816,0.66846816,117470.0,117460.0,1.70428]
[1758201441018,0.66846816,117470.0,117460.0,2.06508]
[1758201446022,0.66846816,117470.0,117460.0,0.93]
[1758201446222,0.66846816,117470.0,117460.0,2.06508]
[1758201446825,0.66846816,117470.0,117460.0,1.70428]
[1758201447925,0.66846816,117470.0,117460.0,0.93]
[1758201449117,0.66846816,117470.0,117460.0,0.61]
[1758201449118,1.56122122,117470.0,117460.0,0.61]
[1758201449324,1.56122122,117470.0,117460.0,0.52920001]
[1758201449626,1.58297542,117470.0,117460.0,0.52920001]
[1758201449832,1.58297542,117470.0,117430.0,0.43711794]
[1758201450026,0.85121918,117440.0,117430.0,0.87]
[1758201450230,1.62549918,117440.0,117430.0,0.87]
[1758201451225,1.98629918,117440.0,117430.0,0.87]
[1758201451522,1.98653918,117440.0,117430.0,0.592]
[1758201451725,1.99523304,117440.0,117430.0,0.592]
[1758201451927,0.37485386,117440.0,117430.0,0.593]
[1758201452131,1.99543304,117440.0,117430.0,0.593]
[1758201452520,1.22071304,117440.0,117430.0,0.593]
[1758201452823,1.99543304,117440.0,117430.0,0.593]
[1758201453023,1.99543304,117440.0,117430.0,0.591]
[1758201454026,1.99543304,117440.0,117430.0,0.59]
[1758201454228,1.99643304,117440.0,117430.0,0.59]
[1758201454436,1.22171304,117440.0,117430.0,0.59]
[1758201454730,0.93975998,117440.0,117430.0,0.62447]
[1758201455032,0.57895998,117440.0,117430.0,0.62447]
[1758201455534,0.57895998,117440.0,117430.0,0.95447]
[1758201455535,0.01505386,117440.0,117430.0,0.95447]
[1758201455737,0.57895998,117440.0,117430.0,0.95447]
[1758201456632,0.57895998,117440.0,117430.0,1.31527]
[1758201457833,0.28831306,117440.0,117430.0,1.6503837]
[1758201458038,0.001,117440.0,117430.0,1.93233676]
[1758201458230,0.28295306,117440.0,117430.0,1.93233676]
[1758201458436,0.28295306,117440.0,117430.0,1.6503837]
[1758201459229,0.001,117440.0,117430.0,1.6503837]
[1758201459542,0.001,117440.0,117430.0,1.4003837]
[1758201460638,0.28295306,117440.0,117430.0,1.4003837]
[1758201461138,0.28295306,117440.0,117430.0,1.4013837]
[1758201461438,0.28195306,117440.0,117430.0,1.4023837]
[1758201461738,0.42829006,117440.0,117430.0,1.82531376]
[1758201462528,0.42829006,117440.0,117430.0,1.816518]
[1758201462731,0.85122012,117440.0,117430.0,2.16926794]
[1758201462936,0.85122012,117440.0,117430.0,2.592198]
[1758201463433,0.42829006,117440.0,117430.0,2.51588006]
[1758201463737,0.42829006,117440.0,117430.0,2.09295]
[1758201463939,0.42829006,117440.0,117430.0,2.51588006]
[1758201464743,0.42829006,117440.0,117430.0,2.592198]
[1758201465340,0.42829006,117440.0,117430.0,2.16926794]
[1758201465528,0.42829006,117440.0,117430.0,2.592198]
[1758201465841,0.0001,117450.0,117430.0,2.592198]
[1758201466138,0.00546,117450.0,117440.0,0.39527]
[1758201466329,0.00536,117450.0,117440.0,1.26527]
[1758201467132,0.42829006,117450.0,117440.0,1.26527]
[1758201468042,0.00536,117450.0,117440.0,1.26527]
[1758201468341,0.42829006,117450.0,117440.0,1.26527]
[1758201469240,0.42829006,117450.0,117440.0,1.3503764]
[1758201469629,0.42293006,117450.0,117440.0,1.77330646]
[1758201470741,0.42293006,117450.0,117440.0,1.68820006]
[1758201470938,0.42293006,117450.0,117440.0,2.46356006]
[1758201471243,0.42293006,117450.0,117440.0,2.04063]
[1758201472847,0.42293006,117450.0,117440.0,1.26527]
[1758201473147,0.42293006,117450.0,117440.0,2.04075]
[1758201477252,0.42293006,117450.0,117440.0,2.04047]
[1758201479355,0.00536,117450.0,117440.0,2.04047]
[1758201479553,0.85122012,117450.0,117440.0,2.04047]
[1758201480056,0.42829006,117450.0,117440.0,2.04047]
[1758201486860,0.42829006,117450.0,117440.0,1.26527]
[1758201487063,0.42829006,117450.0,117440.0,2.03995]
[1758201487064,0.85122012,117450.0,117440.0,2.03995]
[1758201489155,0.42829006,117450.0,117440.0,2.03995]
[1758201489362,0.42293006,117450.0,117440.0,2.11626794]
[1758201489557,0.00546,117460.0,117450.0,0.01306]
[1758201489762,0.85122012,117460.0,117450.0,1.32525]
[1758201490761,0.85222012,117460.0,117450.0,1.32525]
[1758201491763,0.85222012,117460.0,117450.0,1.40156794]
[1758201492363,0.85222012,117460.0,117450.0,1.32525]
[1758201495361,0.001,117460.0,117450.0,1.74818006]
[1758201495566,0.42393006,117460.0,117450.0,1.824498]
[1758201497370,0.84686012,117460.0,117450.0,1.40156794]
[1758201497668,0.84686012,117460.0,117450.0,1.824498]
[1758201498164,0.84686012,117460.0,117450.0,1.40156794]
[1758201498567,0.84686012,117460.0,117450.0,1.824498]
[1758201500369,0.84686012,117460.0,117450.0,1.32525]
[1758201500760,0.84686012,117460.0,117450.0,1.74818006]
[1758201502070,0.84686012,117460.0,117450.0,1.824498]
[1758201502465,0.001,117460.0,117450.0,1.824498]
[1758201502765,0.84686012,117460.0,117450.0,1.40156794]
[1758201503072,0.84686012,117460.0,117450.0,1.74818006]
[1758201503265,0.84686012,117460.0,117450.0,2.52406006]
[1758201503666,0.84686012,117460.0,117450.0,2.10113]
[1758201506162,0.84686012,117460.0,117450.0,2.52406006]
[1758201508274,0.84686012,117460.0,117450.0,2.52402006]
[1758201509270,0.84686012,117460.0,117450.0,2.10109]
[1758201509474,0.84686012,117460.0,117450.0,2.10101]
[1758201509774,0.84686012,117460.0,117450.0,2.52394006]
[1758201510376,0.84686012,117460.0,117450.0,1.74818006]
[1758201510577,0.84686012,117460.0,117450.0,2.52382006]
[1758201511570,0.84686012,117460.0,117450.0,1.32525]
[1758201511775,0.84686012,117460.0,117450.0,2.10081]
[1758201511977,0.84586012,117460.0,117450.0,2.10081]
[1758201512780,0.07358204,117470.0,117460.0,0.03542]
[1758201512979,0.91934216,117470.0,117460.0,1.30622]
[1758201513881,0.91934216,117470.0,117460.0,2.08158]
[1758201514366,0.91934216,117470.0,117460.0,1.30622]
[1758201514770,0.91934216,117470.0,117460.0,2.0815]
[1758201516479,0.91934216,117470.0,117460.0,2.08134]
[1758201516677,0.91934216,117470.0,117460.0,1.30622]
[1758201516878,0.91934216,117470.0,117460.0,2.08134]
[1758201517177,0.91934216,117470.0,117460.0,1.30622]
[1758201517373,0.91934216,117470.0,117460.0,2.08134]
[1758201521778,0.35533942,117470.0,117460.0,2.08134]
[1758201531194,0.35533942,117470.0,117460.0,2.08066]
[1758201532593,0.35533942,117470.0,117460.0,2.165752]
[1758201533889,0.07348204,117470.0,117460.0,2.08066]
[1758201534085,0.35533942,117470.0,117460.0,2.08066]
[1758201534792,0.35533942,117470.0,117460.0,2.15697794]
[1758201535593,0.35533942,117470.0,117460.0,2.24206984]
[1758201538096,0.35533942,117470.0,117460.0,2.15697794]
[1758201538296,0.28189738,117470.0,117460.0,2.52392732]
[1758201538495,0.28189738,117470.0,117460.0,2.44760938]
[1758201538695,4e-05,117470.0,117460.0,2.165752]
[1758201538896,0.28189738,117470.0,117460.0,2.1740427]
[1758201540189,0.28189738,117470.0,117460.0,1.3996027]
[1758201540392,0.28189738,117470.0,117460.0,2.1740427]
[1758201541499,4e-05,117470.0,117460.0,2.45590008]
[1758201541796,0.28189738,117470.0,117460.0,2.45590008]
[1758201542699,0.28189738,117470.0,117460.0,2.1740427]
[1758201543198,0.28189738,117470.0,117460.0,2.25036064]
[1758201543396,0.28189738,117470.0,117460.0,2.1740427]
[1758201543799,0.28189738,117470.0,117460.0,2.25036064]
[1758201544404,4e-05,117470.0,117460.0,2.00777802]
[1758201544699,4e-05,117470.0,117460.0,2.78217802]
[1758201545090,4e-05,117470.0,117460.0,2.00777802]
[1758201545295,0.28189738,117470.0,117460.0,2.78217802]
[1758201545802,0.28189738,117470.0,117460.0,2.50032064]
[1758201546195,0.28189738,117470.0,117460.0,2.78217802]
[1758201547308,0.28189738,117470.0,117460.0,2.00777802]
[1758201547607,0.28189738,117470.0,117460.0,2.70586008]
[1758201548010,0.28189738,117470.0,117460.0,2.7820143]
[1758201550909,0.28189738,117470.0,117460.0,2.50015692]
[1758201551511,0.28189738,117470.0,117460.0,2.50011692]
[1758201552309,0.28189738,117470.0,117460.0,2.7819743]
[1758201555014,0.28189738,117470.0,117460.0,2.70582008]
[1758201555216,0.28189738,117470.0,117460.0,2.53057839]
[1758201555409,0.28189738,117470.0,117460.0,2.88855142]
[1758201555609,0.28189738,117470.0,117460.0,2.78193573]
[1758201555814,0.28189738,117470.0,117460.0,2.70582008]
[1758201556915,4e-05,117470.0,117460.0,2.70582008]
[1758201557116,0.28189738,117470.0,117460.0,2.70582008]
[1758201561020,4e-05,117470.0,117460.0,2.70582008]
[1758201561617,0.28189738,117470.0,117460.0,2.4239227]
[1758201561817,0.28189738,117470.0,117460.0,2.70578008]
[1758201562019,0.28189738,117470.0,117460.0,2.3388307]
[1758201563424,0.28189738,117470.0,117460.0,2.3387907]
[1758201564220,0.28189738,117470.0,117460.0,1.55622]
[1758201564420,0.28189738,117470.0,117460.0,2.3305]
[1758201564724,0.56375476,117470.0,117460.0,1.30622]
[1758201564923,0.28189738,117470.0,117460.0,1.30622]
[1758201565126,0.56375476,117470.0,117460.0,2.0805]
[1758201565528,0.28189738,117470.0,117460.0,2.0805]
[1758201567424,0.28189738,117470.0,117460.0,2.15661565]
[1758201569932,4e-05,117470.0,117460.0,2.52357133]
[1758201570131,0.28189738,117470.0,117460.0,2.52357133]
[1758201570427,4e-05,117470.0,117460.0,2.52357133]
[1758201572631,0.28189738,117470.0,117460.0,1.38233565]
[1758201573033,0.28189738,117470.0,117460.0,2.15661565]
[1758201573838,0.28189738,117470.0,117460.0,1.38233565]
[1758201574040,0.28189738,117470.0,117460.0,2.15661565]
[1758201577133,0.28189738,117470.0,117460.0,1.38233565]
[1758201577338,0.28189738,117470.0,117460.0,2.15661565]
[1758201580840,4e-05,117470.0,117460.0,2.15661565]
[1758201581042,0.28189738,117470.0,117460.0,2.15661565]
[1758201583045,0.28189738,117470.0,117460.0,1.38233565]
[1758201583240,0.28189738,117470.0,117460.0,2.15661565]
[1758201583841,0.4227821,117470.0,117460.0,2.15661565]
[1758201585448,0.4227821,117470.0,117460.0,2.57935775]
[1758201586346,0.4227821,117470.0,117460.0,1.30622]
[1758201586647,0.86268224,117470.0,117460.0,2.0805]
[1758201588654,0.43994014,117470.0,117460.0,2.0805]
[1758201591660,0.43994014,117470.0,117460.0,1.30622]
[1758201591853,0.43994014,117470.0,117460.0,2.0805]
[1758201595550,0.43994014,117470.0,117460.0,2.15661565]
[1758201595951,0.01719804,117470.0,117460.0,2.15661565]
[1758201596154,0.43994014,117470.0,117460.0,2.15661565]
[1758201596362,0.43994014,117470.0,117460.0,2.57935775]
[1758201597563,0.43994014,117470.0,117460.0,2.15661565]
[1758201598561,0.43994014,117470.0,117460.0,2.57935775]
[1758201599665,0.43994014,117470.0,117460.0,2.15661565]
[1758201603359,0.43994014,117470.0,117460.0,1.38233565]
[1758201603558,0.43994014,117470.0,117460.0,2.15657565]
[1758201604662,0.43994014,117470.0,117460.0,2.08046]
[1758201605665,0.43994014,117470.0,117460.0,1.30622]
[1758201605866,0.86268224,117470.0,117460.0,2.08046]
[1758201607065,0.43994014,117470.0,117460.0,2.08046]
[1758201608264,0.43994014,117470.0,117460.0,2.15657565]
[1758201608665,0.43994014,117470.0,117460.0,2.57931775]
[1758201610367,0.43994014,117470.0,117460.0,2.15657565]
[1758201610866,0.43994014,117470.0,117460.0,2.57931775]
[1758201612962,0.01719804,117470.0,117460.0,2.57931775]
[1758201613161,0.43994014,117470.0,117460.0,2.57931775]
[1758201613565,0.43994014,117470.0,117460.0,3.08715865]
[1758201614269,0.43994014,117470.0,117460.0,2.66441655]
[1758201614462,0.43994014,117470.0,117460.0,2.24167445]
[1758201614661,0.43994014,117470.0,117460.0,2.66441655]
[1758201615768,0.43994014,117470.0,117460.0,1.80507775]
[1758201616164,0.43994014,117470.0,117460.0,2.15649565]
[1758201616363,0.43994014,117470.0,117460.0,2.57923775]
[1758201617670,0.43994014,117470.0,117460.0,1.80507775]
[1758201617968,0.43994014,117470.0,117460.0,2.57923775]
[1758201618571,0.43994014,117470.0,117460.0,1.80507775]
[1758201618874,0.43994014,117470.0,117460.0,2.57923775]
[1758201619871,0.43994014,117470.0,117460.0,2.588221]
[1758201620782,0.43994014,117470.0,117460.0,2.5031221]
[1758201621072,0.43994014,117470.0,117460.0,1.7289621]
[1758201621273,0.43994014,117470.0,117460.0,2.5030821]
[1758201621972,0.43994014,117470.0,117460.0,1.7289621]
[1758201622174,0.43994014,117470.0,117460.0,2.5030821]
[1758201623575,0.43994014,117470.0,117460.0,2.57919775]
[1758201625274,0.43994014,117470.0,117460.0,2.5030821]
[1758201625468,0.43994014,117470.0,117460.0,2.588181]
[1758201625664,0.01719804,117470.0,117460.0,2.588181]
[1758201625873,0.43994014,117470.0,117460.0,2.66429665]
[1758201629473,0.43994014,117470.0,117460.0,1.38233565]
[1758201629677,0.43994014,117470.0,117460.0,2.57915775]
[1758201629877,0.43994014,117470.0,117460.0,1.80507775]
[1758201630178,0.43994014,117470.0,117460.0,2.57915775]
[1758201630678,0.43994014,117470.0,117460.0,1.80507775]
[1758201630877,0.86268224,117470.0,117460.0,1.38233565]
[1758201631083,0.26719804,117470.0,117460.0,1.30622]
[1758201631272,1.11268224,117470.0,117460.0,1.7195]
[1758201631681,1.11804224,117470.0,117460.0,0.94542]
[1758201631976,1.11804224,117470.0,117460.0,1.7195]
[1758201632178,1.18481044,117470.0,117460.0,1.7195]
[1758201632579,1.18481044,117470.0,117460.0,0.94542]
[1758201632974,1.18481044,117470.0,117460.0,1.71946]
[1758201633175,1.19329292,117470.0,117460.0,1.71946]
[1758201633581,1.19329292,117470.0,117460.0,0.94542]
[1758201633778,1.19329292,117470.0,117460.0,1.7195]
[1758201634982,1.18481044,117470.0,117460.0,1.7195]
[1758201635877,1.18481044,117470.0,117460.0,0.94542]
[1758201636078,1.18481044,117470.0,117460.0,1.71946]
[1758201636583,1.18481044,117470.0,117460.0,1.7195]
[1758201637477,1.19315119,117470.0,117460.0,1.7195]
[1758201638175,1.19315119,117470.0,117460.0,1.71946]
[1758201639283,0.94315119,117470.0,117460.0,1.71946]
[1758201645779,0.66146261,117470.0,117460.0,1.71946]
[1758201648389,0.65312186,117470.0,117460.0,1.71946]
[1758201648693,0.08932624,117470.0,117460.0,1.71946]
[1758201648883,0.65312186,117470.0,117460.0,1.71946]
[1758201649493,0.37122405,117470.0,117460.0,1.71946]
[1758201653795,0.36586405,117470.0,117460.0,2.08026]
[1758201666601,0.36586405,117470.0,117460.0,1.30622]
[1758201666789,0.36586405,117470.0,117460.0,2.0801]
[1758201673806,0.64776186,117470.0,117460.0,2.0801]
[1758201674800,0.36586405,117470.0,117460.0,2.0801]
[1758201682017,0.01719804,117470.0,117460.0,2.0801]
[1758201682214,0.29909585,117470.0,117460.0,2.0801]
[1758201683516,0.29909585,117470.0,117460.0,1.30622]
[1758201683722,0.29909585,117470.0,117460.0,2.07994]
[1758201684526,0.29909585,117470.0,117460.0,1.30622]
[1758201684721,0.29909585,117470.0,117460.0,2.07994]
[1758201687326,0.29909585,117470.0,117460.0,1.30622]
[1758201687526,0.29909585,117470.0,117460.0,2.0799]
[1758201689527,0.29909585,117470.0,117460.0,1.30622]
[1758201689728,0.29909585,117470.0,117460.0,2.0799]
[1758201690131,0.01719804,117470.0,117460.0,2.15601565]
[1758201690323,0.01719804,117470.0,117460.0,2.0799]
[1758201690628,0.29909585,117470.0,117460.0,2.0799]
[1758201692030,0.58099366,117470.0,117460.0,1.71906]
[1758201692226,0.29909585,117470.0,117460.0,1.71906]
[1758201692431,0.29909585,117470.0,117460.0,2.07986]
[1758201694636,0.29909585,117470.0,117460.0,1.30622]
[1758201694934,0.29909585,117470.0,117460.0,2.07982]
[1758201695236,0.29909585,117470.0,117460.0,1.30622]
[1758201695429,0.29909585,117470.0,117460.0,2.07982]
[1758201699440,0.58635366,117470.0,117460.0,0.94542]
[1758201699937,0.58635366,117470.0,117460.0,1.71898]
[1758201700940,0.58635366,117470.0,117460.0,0.94542]
[1758201701240,0.58635366,117470.0,117460.0,1.71898]
[1758201701642,0.02255804,117470.0,117460.0,2.07978]
[1758201701846,0.58635366,117470.0,117460.0,2.07978]
[1758201703141,0.30445585,117470.0,117460.0,2.07978]
[1758201707138,0.28729781,117470.0,117460.0,2.07978]
[1758201707831,0.85100234,117470.0,117460.0,2.07978]
[1758201708541,0.85100234,117470.0,117460.0,2.15589565]
[1758201708933,0.85100234,117470.0,117460.0,2.07978]
[1758201711438,0.42820117,117470.0,117460.0,2.07978]
[1758201713044,0.85100234,117470.0,117460.0,2.07978]
[1758201713540,0.42820117,117470.0,117460.0,2.07978]
[1758201713747,0.42284117,117470.0,117460.0,2.07978]
[1758201713946,0.42284117,117470.0,117460.0,2.15589565]
[1758201716450,4e-05,117470.0,117460.0,2.15589565]
[1758201716646,0.42284117,117470.0,117460.0,2.15589565]
[1758201717548,0.42284117,117470.0,117460.0,2.07978]
[1758201724063,0.84564234,117470.0,117460.0,2.07962]
[1758201724456,0.84564234,117470.0,117460.0,1.30622]
[1758201724657,0.84564234,117470.0,117460.0,2.07958]
[1758201726257,0.84564234,117470.0,117460.0,1.71878]
[1758201726751,0.85100234,117470.0,117460.0,0.94542]
[1758201727157,0.85100234,117470.0,117460.0,1.71878]
[1758201727551,0.85100234,117470.0,117460.0,0.94542]
[1758201727757,0.85100234,117470.0,117460.0,1.71878]
[1758201730052,0.0054,117470.0,117460.0,1.71878]
[1758201730359,0.85100234,117470.0,117460.0,1.71878]
[1758201730559,0.85100234,117470.0,117460.0,0.94542]
[1758201730758,0.85100234,117470.0,117460.0,1.71874]
[1758201731459,0.85100234,117470.0,117460.0,2.07954]
[1758201731758,0.0054,117470.0,117460.0,2.07954]
[1758201731958,0.85100234,117470.0,117460.0,2.07954]
[1758201740968,0.85100234,117470.0,117460.0,1.30622]
[1758201741364,0.85100234,117470.0,117460.0,2.07946]
[1758201757879,0.85100234,117470.0,117460.0,2.15557565]
[1758201758677,0.85100234,117470.0,117460.0,2.07946]
[1758201759376,0.85100234,117470.0,117460.0,1.30622]
[1758201759579,0.85100234,117470.0,117460.0,2.07934]
[1758201769790,0.56917558,117470.0,117460.0,2.07934]
[1758201770692,0.56917558,117470.0,117460.0,2.15545565]
[1758201772693,0.0054,117470.0,117460.0,2.15545565]
[1758201772893,0.28728779,117470.0,117460.0,2.15545565]
[1758201773789,0.28728779,117470.0,117460.0,2.07934]
[1758201777200,4e-05,117470.0,117460.0,3.05712659]
[1758201777499,0.28192779,117470.0,117460.0,3.05712659]
[1758201778402,0.28192779,117470.0,117460.0,2.7752388]
[1758201780500,0.28192779,117470.0,117460.0,3.05712659]
[1758201780701,0.28192779,117470.0,117460.0,3.13324224]
[1758201781304,0.28192779,117470.0,117460.0,2.85135445]
[1758201782302,4e-05,117470.0,117460.0,2.85135445]
[1758201782502,0.28192779,117470.0,117460.0,2.85135445]
[1758201783908,0.01746965,117480.0,117470.0,0.0989615]
[1758201784210,0.01736965,117480.0,117470.0,1.74936494]
[1758201784507,0.29925744,117480.0,117470.0,1.74936494]
[1758201784905,0.29925744,117480.0,117470.0,1.46747715]
[1758201785106,0.30125744,117480.0,117470.0,1.74936494]
[1758201787105,0.30125744,117480.0,117470.0,1.46747715]
[1758201787410,0.30125744,117480.0,117470.0,1.74936494]
[1758201787810,0.01936965,117480.0,117470.0,1.74936494]
[1758201788808,0.01936965,117480.0,117470.0,1.81853608]
[1758201789412,0.01936965,117480.0,117470.0,2.52216494]
[1758201791214,0.50026933,117510.0,117500.0,0.03547]
[1758201791514,0.67125385,117510.0,117500.0,1.63827]
[1758201792013,0.67125385,117510.0,117500.0,1.63823]
[1758201792207,0.67985673,117510.0,117500.0,1.63823]
[1758201793413,0.68285673,117510.0,117500.0,1.63823]
[1758201794814,0.68285673,117510.0,117500.0,0.86547]
[1758201795420,0.68285673,117510.0,117500.0,1.63819]
[1758201796615,0.68285673,117510.0,117500.0,0.86547]
[1758201797023,0.68285673,117510.0,117500.0,1.63819]
[1758201798834,0.11908115,117510.0,117500.0,1.63819]
[1758201799018,0.40096894,117510.0,117500.0,1.63819]
[1758201800120,0.40096894,117510.0,117500.0,0.86547]
[1758201800321,0.40096894,117510.0,117500.0,1.63815]
[1758201801922,0.68285673,117510.0,117500.0,1.63815]
[1758201804122,0.68285673,117510.0,117500.0,1.63811]
[1758201804320,0.68285673,117510.0,117500.0,0.86547]
[1758201804520,0.40096894,117510.0,117500.0,1.63811]
[1758201805727,0.68285673,117510.0,117500.0,1.63811]
[1758201808224,0.68285673,117510.0,117500.0,1.99891]
[1758201808425,0.68285673,117510.0,117500.0,1.63811]
[1758201809628,0.68285673,117510.0,117500.0,0.86547]
[1758201809828,0.68285673,117510.0,117500.0,1.63807]
[1758201810528,0.30209673,117510.0,117500.0,1.63807]
[1758201811027,0.30209673,117510.0,117500.0,1.63803]
[1758201811331,0.31065823,117510.0,117500.0,1.63803]
[1758201811832,0.31065823,117510.0,117500.0,0.86547]
[1758201812035,0.33348823,117510.0,117500.0,1.63803]
[1758201812830,0.33348823,117510.0,117500.0,0.86547]
[1758201813031,0.33348823,117510.0,117500.0,1.63803]
[1758201813833,0.61537602,117510.0,117500.0,0.86547]
[1758201814031,0.97617602,117510.0,117500.0,0.86547]
[1758201814233,0.97617602,117510.0,117500.0,1.63803]
[1758201814630,0.97617602,117510.0,117500.0,0.86547]
[1758201814832,0.97617602,117510.0,117500.0,1.63799]
[1758201816035,0.97617602,117510.0,117500.0,0.86547]
[1758201816234,1.74869602,117510.0,117500.0,0.86547]
[1758201818134,0.97617602,117510.0,117500.0,0.86547]
[1758201818333,0.99808386,117510.0,117500.0,0.86547]
[1758201819837,0.43430828,117510.0,117500.0,0.86547]
[1758201820039,0.98798386,117510.0,117500.0,0.86547]
[1758201822538,0.34529607,117510.0,117500.0,0.86547]
[1758201822842,0.62718386,117510.0,117500.0,0.86547]
[1758201823041,0.60527602,117510.0,117500.0,0.86547]
[1758201825542,0.60527602,117510.0,117500.0,1.63795]
[1758201828445,0.60527602,117510.0,117500.0,0.86547]
[1758201828744,0.60527602,117510.0,117500.0,1.63791]
[1758201828945,0.97375602,117510.0,117500.0,0.86547]
[1758201829249,0.97375602,117510.0,117500.0,0.54]
[1758201830040,0.99567177,117510.0,117500.0,0.54]
[1758201830342,1.27755956,117510.0,117500.0,0.56268]
[1758201830544,0.99567177,117510.0,117500.0,0.56268]
[1758201831151,1.75943177,117510.0,117500.0,0.57603]
[1758201831450,0.98699177,117510.0,117500.0,0.57603]
[1758201831753,2.01901676,117510.0,117500.0,0.57603]
[1758201832255,1.17374044,117510.0,117500.0,0.57603]
[1758201832454,2.42901676,117510.0,117500.0,0.57603]
[1758201832754,2.45092787,117510.0,117500.0,0.57603]
[1758201834154,2.87356603,117510.0,117500.0,0.57603]
[1758201834355,2.45092787,117510.0,117500.0,0.57603]
[1758201835653,2.87356603,117510.0,117500.0,0.57603]
[1758201836455,2.45092787,117510.0,117500.0,0.57603]
[1758201837358,2.46356603,117510.0,117500.0,0.57603]
[1758201838055,2.46356603,117510.0,117500.0,0.54]
[1758201838361,2.46356603,117510.0,117500.0,0.5616]
[1758201840262,1.69112603,117510.0,117500.0,0.5616]
[1758201840562,2.46356603,117510.0,117500.0,0.5616]
[1758201840754,2.46356603,117510.0,117500.0,0.57502]
[1758201842862,1.69112603,117510.0,117500.0,0.57502]
[1758201843060,2.46352603,117510.0,117500.0,0.57502]
[1758201845865,1.69112603,117510.0,117500.0,0.57502]
[1758201846066,2.46352603,117510.0,117500.0,0.57502]
[1758201846667,1.69112603,117510.0,117500.0,0.57502]
[1758201846970,2.46352603,117510.0,117500.0,0.57502]
[1758201849068,1.69112603,117510.0,117500.0,0.57502]
[1758201849369,2.46352603,117510.0,117500.0,0.57502]
[1758201850362,1.69112603,117510.0,117500.0,0.57502]
[1758201850563,2.46352603,117510.0,117500.0,0.57502]
[1758201851966,2.04088787,117510.0,117500.0,0.57502]
[1758201852166,1.24657676,117510.0,117500.0,0.57502]
[1758201852365,1.65657676,117510.0,117500.0,0.57502]
[1758201853569,0.81130044,117510.0,117500.0,0.57502]
[1758201853768,1.65657676,117510.0,117500.0,0.57502]
[1758201855468,1.65457676,117510.0,117500.0,0.57502]
[1758201855670,1.65657676,117510.0,117500.0,0.57502]
[1758201855865,0.42767044,117510.0,117500.0,0.82502]
[1758201856068,1.27294676,117510.0,117500.0,1.10502]
[1758201856266,1.26438526,117510.0,117500.0,1.87738]
[1758201856769,1.27301669,117510.0,117500.0,1.87738]
[1758201857160,1.27101669,117510.0,117500.0,1.87738]
[1758201857362,1.27201669,117510.0,117500.0,1.87738]
[1758201858475,1.27201669,117510.0,117500.0,1.10502]
[1758201858771,1.27201669,117510.0,117500.0,1.87738]
[1758201859864,1.27201669,117510.0,117500.0,1.10502]
[1758201860268,1.27201669,117510.0,117500.0,1.87738]
[1758201860470,1.27201669,117510.0,117500.0,1.10502]
[1758201860665,1.27201669,117510.0,117500.0,1.87734]
[1758201861572,1.27201669,117510.0,117500.0,1.10502]
[1758201861774,1.27201669,117510.0,117500.0,1.87734]
[1758201863572,1.27201669,117510.0,117500.0,1.10502]